[Event "FIDE Women World Blitz 2021"]
[Site "Warsaw"]
[Date "2021.12.29"]
[Round "7.13"]
[White "Babiy, Olga"]
[Black "Mamedjarova, Turkan"]
[Result "1-0"]
[ECO "D02"]
[WhiteElo "2179"]
[BlackElo "2264"]
[Annotator "NA"]
[PlyCount "157"]
[EventDate "2021.12.29"]
[EventType "swiss"]
[EventCountry "POL"]
[Tiebreak "Cut1 Buchholz"]
[SourceTitle "playchess.com"]
[Source "ChessBase"]
[SourceQuality "1"]
[TimeControl "180+2"]

1. d4 {[%emt 0:00:01]} Nf6 {[%emt 0:00:01]} 2. Nf3 {[%emt 0:00:00]} e6 {
[%emt 0:00:02]} 3. Bf4 {[%emt 0:00:04]} d5 {[%emt 0:00:04]} 4. e3 {[%emt 0:00:
03]} Bd6 {[%emt 0:00:02]} 5. Nbd2 {[%emt 0:00:03]} Bxf4 6. exf4 {[%emt 0:00:01]
} c5 {[%emt 0:00:15]} 7. c3 {[%emt 0:00:15]} cxd4 {[%emt 0:00:11]} 8. Nxd4 {
[%emt 0:00:01]} O-O {[%emt 0:00:03]} 9. Bd3 {[%emt 0:00:02]} Qc7 {[%emt 0:00:
03]} 10. g3 {[%emt 0:00:01]} e5 {[%emt 0:00:04]} 11. fxe5 {[%emt 0:00:10]}
Qxe5+ {[%emt 0:00:17]} 12. Qe2 {[%emt 0:00:01]} Qxe2+ {[%emt 0:00:06]} 13. Nxe2
{[%emt 0:00:14]} Nc6 {[%emt 0:00:03]} 14. Nf3 {[%emt 0:00:09]} Bg4 {[%emt 0:00:
03]} 15. Nfd4 {[%emt 0:00:05]} Rfe8 {[%emt 0:00:05]} 16. O-O {[%emt 0:00:18]}
Ne5 {[%emt 0:00:01]} 17. Bb5 {[%emt 0:00:02]} Re7 {[%emt 0:00:06]} 18. f3 {
[%emt 0:00:06]} a6 {[%emt 0:00:10]} 19. fxg4 {[%emt 0:00:38]} axb5 {[%emt 0:00:
01]} 20. h3 {[%emt 0:00:01]} Nc4 {[%emt 0:00:09]} 21. b3 {[%emt 0:00:14]} Nd6 {
[%emt 0:00:01]} 22. Kg2 {[%emt 0:00:09]} Re3 {[%emt 0:00:06]} 23. Rf3 {[%emt 0:
00:06]} Re5 {[%emt 0:00:07]} 24. Nf4 {[%emt 0:00:06]} h6 {[%emt 0:00:08]} 25.
Nd3 {[%emt 0:00:04]} Re7 {[%emt 0:00:05]} 26. Nb4 {[%emt 0:00:05]} Rae8 {
[%emt 0:00:12]} 27. Raf1 {[%emt 0:00:02]} Re3 {[%emt 0:00:16]} 28. Rxf6 {
[%emt 0:00:05]} gxf6 29. Nxd5 {[%emt 0:00:01]} Kg7 {[%emt 0:00:27]} 30. Nxe3 {
[%emt 0:00:02]} Rxe3 {[%emt 0:00:01]} 31. Rf3 {[%emt 0:00:04]} Re1 {[%emt 0:00:
01]} 32. Rd3 {[%emt 0:00:09]} Ne4 {[%emt 0:00:13]} 33. Kf3 {[%emt 0:00:05]}
Ng5+ {[%emt 0:00:02]} 34. Kg2 {[%emt 0:00:01]} Ra1 {[%emt 0:00:07]} 35. Rd2 {
[%emt 0:00:03]} Ne4 {[%emt 0:00:05]} 36. Rc2 {[%emt 0:00:01]} Rd1 {[%emt 0:00:
05]} 37. Nxb5 {[%emt 0:00:12]} Rd3 {[%emt 0:00:02]} 38. c4 {[%emt 0:00:02]}
Rxg3+ {[%emt 0:00:03]} 39. Kh2 {[%emt 0:00:00]} Rd3 {[%emt 0:00:02]} 40. c5 {
[%emt 0:00:03]} Kf8 {[%emt 0:00:13]} 41. b4 {[%emt 0:00:00]} Re3 {[%emt 0:00:
06]} 42. Nd4 {[%emt 0:00:05]} Ng5 {[%emt 0:00:04]} 43. Nf5 {[%emt 0:00:07]}
Rxh3+ {[%emt 0:00:02]} 44. Kg2 Rd3 {[%emt 0:00:02]} 45. b5 {[%emt 0:00:03]} Ne6
{[%emt 0:00:05]} 46. c6 {[%emt 0:00:02]} bxc6 {[%emt 0:00:01]} 47. bxc6 {
[%emt 0:00:01]} Nc7 {[%emt 0:00:00]} 48. Rb2 {[%emt 0:00:06]} Ke8 {[%emt 0:00:
03]} 49. Rb8+ {[%emt 0:00:04]} Rd8 {[%emt 0:00:01]} 50. Rb7 {[%emt 0:00:00]}
Ne6 {[%emt 0:00:03]} 51. Nxh6 {[%emt 0:00:12]} Rd2+ {[%emt 0:00:04]} 52. Kf1 {
[%emt 0:00:02]} Rxa2 {[%emt 0:00:02]} 53. Nf5 {[%emt 0:00:03]} Rc2 {[%emt 0:00:
06]} 54. Nd6+ {[%emt 0:00:02]} Kf8 {[%emt 0:00:03]} 55. Rxf7+ {[%emt 0:00:02]}
Kg8 {[%emt 0:00:01]} 56. Re7 {[%emt 0:00:04]} Nd4 {[%emt 0:00:04]} 57. c7 {
[%emt 0:00:02]} Rc1+ {[%emt 0:00:04]} 58. Kf2 {[%emt 0:00:01]} Kf8 {[%emt 0:00:
01]} 59. Re8+ {[%emt 0:00:02]} Kg7 {[%emt 0:00:02]} 60. c8=Q {[%emt 0:00:01]}
Rxc8 {[%emt 0:00:01]} 61. Rxc8 {[%emt 0:00:02]} Ne6 {[%emt 0:00:01]} 62. Nf5+ {
[%emt 0:00:03]} Kf7 {[%emt 0:00:01]} 63. Kg3 {[%emt 0:00:01]} Ng5 {[%emt 0:00:
03]} 64. Rc7+ {[%emt 0:00:02]} Ke6 {[%emt 0:00:01]} 65. Re7+ {[%emt 0:00:02]}
Kd5 {[%emt 0:00:01]} 66. Kh4 {[%emt 0:00:05]} Nf3+ {[%emt 0:00:01]} 67. Kh5 {
[%emt 0:00:02]} Ne5 {[%emt 0:00:01]} 68. Re8 {[%emt 0:00:08]} Nd7 {[%emt 0:00:
05]} 69. Kg6 {[%emt 0:00:03]} Ne5+ {[%emt 0:00:01]} 70. Kxf6 {[%emt 0:00:01]}
Nxg4+ {[%emt 0:00:01]} 71. Kg5 {[%emt 0:00:01]} Ne5 {[%emt 0:00:01]} 72. Rd8+ {
[%emt 0:00:00]} Ke6 {[%emt 0:00:02]} 73. Nd4+ {[%emt 0:00:01]} Ke7 {[%emt 0:00:
01]} 74. Ra8 {[%emt 0:00:01]} Kd6 {[%emt 0:00:02]} 75. Ra6+ {[%emt 0:00:01]}
Kd5 {[%emt 0:00:01]} 76. Nf5 {[%emt 0:00:01]} Nf3+ {[%emt 0:00:02]} 77. Kf4 {
[%emt 0:00:01]} Nd2 {[%emt 0:00:01]} 78. Rd6+ {[%emt 0:00:01]} Kc4 {[%emt 0:00:
01]} 79. Rxd2 {[%emt 0:00:01]} 1-0

[Event "FIDE Women World Blitz 2021"]
[Site "Warsaw"]
[Date "2021.12.29"]
[Round "7.13"]
[White "Brambilla, Renee Blandy T."]
[Black "Heredia Serrano, Carla"]
[Result "0-1"]
[ECO "D10"]
[WhiteElo "1651"]
[BlackElo "2138"]
[Annotator "NA"]
[PlyCount "79"]
[EventDate "2021.12.29"]
[EventType "swiss"]
[EventCountry "POL"]
[Tiebreak "Cut1 Buchholz"]
[SourceTitle "playchess.com"]
[Source "ChessBase"]
[SourceQuality "1"]
[TimeControl "180+2"]

1. d4 {[%emt 0:00:01]} d5 {[%emt 0:00:00]} 2. c4 {[%emt 0:00:01]} c6 {[%emt 0:
00:02]} 3. Nc3 {[%emt 0:00:02]} dxc4 {[%emt 0:00:03]} 4. e3 {[%emt 0:00:03]} b5
{[%emt 0:00:39]} 5. b3 {[%emt 0:00:27]} cxb3 {[%emt 0:00:06]} 6. Qxb3 {[%emt 0:
00:06]} e6 {[%emt 0:00:22]} 7. Nf3 {[%emt 0:00:07]} Nf6 {[%emt 0:00:02]} 8. Bd3
{[%emt 0:00:03]} Be7 {[%emt 0:00:06]} 9. Ba3 {[%emt 0:00:11]} O-O {[%emt 0:00:
05]} 10. Bxe7 {[%emt 0:00:04]} Qxe7 {[%emt 0:00:01]} 11. O-O {[%emt 0:00:02]}
a5 {[%emt 0:00:07]} 12. a4 {[%emt 0:00:10]} b4 {[%emt 0:00:02]} 13. Ne4 {
[%emt 0:00:05]} Nxe4 {[%emt 0:00:11]} 14. Bxe4 {[%emt 0:00:02]} Bb7 {[%emt 0:
00:04]} 15. Rac1 {[%emt 0:00:15]} Rc8 {[%emt 0:00:15]} 16. Ne5 {[%emt 0:00:03]}
f6 {[%emt 0:00:24]} 17. Nd3 {[%emt 0:00:01]} Nd7 {[%emt 0:00:27]} 18. Nc5 {
[%emt 0:00:08]} Nxc5 {[%emt 0:00:02]} 19. Rxc5 {[%emt 0:00:02]} g6 {[%emt 0:00:
27]} 20. Rfc1 {[%emt 0:00:06]} Kg7 {[%emt 0:00:04]} 21. h3 {[%emt 0:00:03]} Rc7
{[%emt 0:00:02]} 22. h4 {[%emt 0:00:09]} Rac8 {[%emt 0:00:05]} 23. Qc2 {
[%emt 0:00:05]} f5 {[%emt 0:00:03]} 24. Bf3 {[%emt 0:00:06]} Ra8 {[%emt 0:00:
05]} 25. h5 {[%emt 0:00:06]} g5 {[%emt 0:00:03]} 26. g4 {[%emt 0:00:07]} Qf7 {
[%emt 0:00:01]} 27. Bxc6 {[%emt 0:00:14]} Bxc6 {[%emt 0:00:01]} 28. Rxc6 {
[%emt 0:00:02]} Rxc6 {[%emt 0:00:01]} 29. Qxc6 {[%emt 0:00:01]} Rd8 {[%emt 0:
00:02]} 30. Qb6 {[%emt 0:00:33]} fxg4 {[%emt 0:00:03]} 31. Rc7 {[%emt 0:00:02]}
Rd7 {[%emt 0:00:00]} 32. Rxd7 {[%emt 0:00:16]} Qxd7 {[%emt 0:00:01]} 33. Qxa5 {
[%emt 0:00:04]} Qd6 {[%emt 0:00:02]} 34. Qa7+ {[%emt 0:00:08]} Kh6 {[%emt 0:00:
02]} 35. Qc5 {[%emt 0:00:10]} Qxc5 {[%emt 0:00:07]} 36. dxc5 {[%emt 0:00:01]}
b3 {[%emt 0:00:00]} 37. c6 {[%emt 0:00:02]} b2 {[%emt 0:00:01]} 38. c7 {
[%emt 0:00:02]} b1=Q+ {[%emt 0:00:02]} 39. Kg2 {[%emt 0:00:02]} Qe4+ {[%emt 0:
00:00]} 40. f3 {[%emt 0:00:10]} 0-1

[Event "FIDE Women World Blitz 2021"]
[Site "Warsaw"]
[Date "2021.12.29"]
[Round "7.14"]
[White "Antolak, Julia"]
[Black "Socko, Monika"]
[Result "0-1"]
[ECO "C12"]
[WhiteElo "2334"]
[BlackElo "2393"]
[Annotator "NA"]
[PlyCount "86"]
[EventDate "2021.12.29"]
[EventType "swiss"]
[EventCountry "POL"]
[Tiebreak "Cut1 Buchholz"]
[SourceTitle "playchess.com"]
[Source "ChessBase"]
[SourceQuality "1"]
[TimeControl "180+2"]

1. e4 {[%emt 0:00:01]} e6 {[%emt 0:00:01]} 2. d4 {[%emt 0:00:01]} d5 {[%emt 0:
00:00]} 3. Nc3 {[%emt 0:00:01]} Nf6 {[%emt 0:00:03]} 4. Bg5 {[%emt 0:00:02]}
Bb4 {[%emt 0:00:02]} 5. e5 {[%emt 0:00:13]} h6 {[%emt 0:00:02]} 6. Be3 {
[%emt 0:00:04]} Ne4 {[%emt 0:00:02]} 7. Qg4 {[%emt 0:00:04]} g6 {[%emt 0:00:01]
} 8. a3 {[%emt 0:00:09]} Bxc3+ {[%emt 0:00:19]} 9. bxc3 {[%emt 0:00:00]} Nxc3 {
[%emt 0:00:11]} 10. Bd3 {[%emt 0:00:02]} b6 {[%emt 0:00:08]} 11. Bd2 {[%emt 0:
00:29]} Ne4 {[%emt 0:00:06]} 12. Bxe4 {[%emt 0:00:01]} dxe4 {[%emt 0:00:00]}
13. Qxe4 {[%emt 0:00:01]} Qd5 {[%emt 0:00:03]} 14. Qxd5 {[%emt 0:00:18]} exd5 {
[%emt 0:00:02]} 15. Ne2 {[%emt 0:00:01]} Nc6 {[%emt 0:00:09]} 16. Rc1 {[%emt 0:
00:05]} Ba6 {[%emt 0:00:04]} 17. Nf4 {[%emt 0:00:11]} Nxd4 {[%emt 0:00:17]} 18.
Nxd5 {[%emt 0:00:01]} O-O-O {[%emt 0:00:01]} 19. Nb4 {[%emt 0:00:02]} Bc4 {
[%emt 0:00:05]} 20. c3 {[%emt 0:00:24]} Nb3 {[%emt 0:00:06]} 21. Rd1 Kb7 {
[%emt 0:00:11]} 22. Be3 {[%emt 0:00:18]} Rhe8 {[%emt 0:00:03]} 23. Rxd8 {
[%emt 0:00:03]} Rxd8 {[%emt 0:00:00]} 24. Bxh6 {[%emt 0:00:35]} Re8 {[%emt 0:
00:01]} 25. f4 {[%emt 0:00:04]} Rd8 {[%emt 0:00:01]} 26. Bg5 {[%emt 0:00:21]}
Rd2 {[%emt 0:00:09]} 27. g4 {[%emt 0:00:13]} a5 {[%emt 0:00:01]} 28. f5 {
[%emt 0:00:01]} Rb2 {[%emt 0:00:02]} 29. e6 {[%emt 0:00:07]} fxe6 {[%emt 0:00:
05]} 30. fxg6 {[%emt 0:00:01]} axb4 {[%emt 0:00:07]} 31. g7 {[%emt 0:00:06]} e5
{[%emt 0:00:01]} 32. axb4 {[%emt 0:00:02]} Rb1+ {[%emt 0:00:01]} 33. Kf2 {
[%emt 0:00:01]} Rxh1 {[%emt 0:00:01]} 34. Kg3 {[%emt 0:00:00]} Nc1 {[%emt 0:00:
09]} 35. Bxc1 {[%emt 0:00:04]} Rxc1 {[%emt 0:00:01]} 36. h4 {[%emt 0:00:01]}
Kc6 {[%emt 0:00:05]} 37. h5 {[%emt 0:00:01]} Bg8 {[%emt 0:00:01]} 38. g5 {
[%emt 0:00:01]} Rg1+ {[%emt 0:00:02]} 39. Kh4 {[%emt 0:00:03]} Kd7 {[%emt 0:00:
01]} 40. h6 {[%emt 0:00:03]} Bh7 {[%emt 0:00:04]} 41. Kh5 {[%emt 0:00:02]} Ke6
{[%emt 0:00:01]} 42. g6 {[%emt 0:00:04]} Bxg6+ {[%emt 0:00:01]} 43. Kh4 {
[%emt 0:00:00]} Bh7 {[%emt 0:00:02]} 0-1

[Event "FIDE Women World Blitz 2021"]
[Site "Warsaw"]
[Date "2021.12.29"]
[Round "7.15"]
[White "Bivol, Alina"]
[Black "Efimenko, Maria"]
[Result "1-0"]
[ECO "B07"]
[WhiteElo "2377"]
[BlackElo "2207"]
[Annotator "NA"]
[PlyCount "63"]
[EventDate "2021.12.29"]
[EventType "swiss"]
[EventCountry "POL"]
[Tiebreak "Cut1 Buchholz"]
[SourceTitle "playchess.com"]
[Source "ChessBase"]
[SourceQuality "1"]
[TimeControl "180+2"]

1. e4 {[%emt 0:00:01]} g6 {[%emt 0:00:01]} 2. d4 {[%emt 0:00:01]} Bg7 {[%emt 0:
00:00]} 3. Nc3 {[%emt 0:00:01]} d6 {[%emt 0:00:01]} 4. g3 {[%emt 0:00:02]} Nf6
{[%emt 0:00:04]} 5. Bg2 {[%emt 0:00:04]} O-O {[%emt 0:00:02]} 6. Nge2 {[%emt 0:
00:03]} Nbd7 {[%emt 0:00:04]} 7. h3 {[%emt 0:00:01]} e5 {[%emt 0:00:01]} 8. Be3
{[%emt 0:00:02]} c6 {[%emt 0:00:01]} 9. O-O {[%emt 0:00:02]} Qc7 {[%emt 0:00:
09]} 10. a4 {[%emt 0:00:01]} a5 {[%emt 0:00:01]} 11. g4 {[%emt 0:00:11]} h6 {
[%emt 0:00:14]} 12. Ng3 {[%emt 0:00:03]} Re8 {[%emt 0:00:12]} 13. f4 {[%emt 0:
00:09]} exf4 {[%emt 0:00:17]} 14. Bxf4 {[%emt 0:00:10]} Nf8 {[%emt 0:00:00]}
15. Kh1 {[%emt 0:00:07]} Ne6 {[%emt 0:00:05]} 16. Be3 {[%emt 0:00:22]} d5 {
[%emt 0:00:22]} 17. e5 {[%emt 0:00:07]} Nh7 {[%emt 0:00:05]} 18. Qd2 {[%emt 0:
00:04]} Qb6 {[%emt 0:00:19]} 19. b3 {[%emt 0:00:33]} Qd8 {[%emt 0:00:02]} 20.
Bxh6 {[%emt 0:00:18]} Bxh6 {[%emt 0:00:08]} 21. Qxh6 {[%emt 0:00:01]} Rf8 {
[%emt 0:00:54]} 22. Nce2 {[%emt 0:00:12]} c5 {[%emt 0:00:12]} 23. c3 {[%emt 0:
00:02]} cxd4 {[%emt 0:00:09]} 24. cxd4 {[%emt 0:00:05]} b6 {[%emt 0:00:00]} 25.
Nc3 {[%emt 0:00:15]} Bb7 {[%emt 0:00:08]} 26. Nb5 {[%emt 0:00:03]} Ba6 {
[%emt 0:00:07]} 27. Rad1 {[%emt 0:00:03]} Qd7 {[%emt 0:00:02]} 28. Nf5 {
[%emt 0:00:15]} gxf5 {[%emt 0:00:03]} 29. gxf5 {[%emt 0:00:02]} Ng7 {[%emt 0:
00:05]} 30. f6 {[%emt 0:00:03]} Ne6 {[%emt 0:00:03]} 31. Rf5 {[%emt 0:00:12]}
Bxb5 {[%emt 0:00:05]} 32. Rh5 {[%emt 0:00:01]} 1-0

[Event "FIDE Women World Blitz 2021"]
[Site "Warsaw"]
[Date "2021.12.29"]
[Round "7.16"]
[White "Lagno, Kateryna"]
[Black "Mamedjarova, Zeinab"]
[Result "1/2-1/2"]
[ECO "C42"]
[WhiteElo "2550"]
[BlackElo "2249"]
[Annotator "ChessBase"]
[PlyCount "122"]
[EventDate "2021.12.29"]
[EventType "swiss"]
[EventCountry "POL"]
[Tiebreak "Cut1 Buchholz"]
[SourceTitle "playchess.com"]
[Source "ChessBase"]
[SourceQuality "1"]
[TimeControl "180+2"]

1. e4 {[%emt 0:00:01]} e5 {[%emt 0:00:00]} 2. Nf3 {[%emt 0:00:01]} d6 {[%emt 0:
00:01]} 3. Bc4 {[%emt 0:00:01]} Be7 {[%emt 0:00:01]} 4. O-O {[%emt 0:00:04]}
Nf6 5. Nc3 {[%emt 0:00:07]} O-O {[%emt 0:00:02]} 6. d3 {[%emt 0:00:12]} c6 {
[%emt 0:00:02]} 7. Bb3 {[%emt 0:00:02]} a5 {[%emt 0:00:02]} 8. a3 {[%emt 0:00:
03]} Nbd7 {[%emt 0:00:22]} 9. Re1 {[%emt 0:00:02]} Nc5 {[%emt 0:00:01]} 10. Ba2
{[%emt 0:00:01]} Be6 {[%emt 0:00:06]} 11. Bxe6 {[%emt 0:00:10]} Nxe6 {[%emt 0:
00:11]} 12. Ne2 {[%emt 0:00:03]} Nh5 {[%emt 0:00:11]} 13. d4 {[%emt 0:00:04]}
Qc7 {[%emt 0:00:24]} 14. Be3 {[%emt 0:00:10]} b6 {[%emt 0:00:24]} 15. c3 {
[%emt 0:00:10]} c5 {[%emt 0:00:06]} 16. d5 {[%emt 0:00:44]} Nd8 {[%emt 0:00:04]
} 17. c4 {[%emt 0:00:03]} f5 {[%emt 0:00:09]} 18. exf5 {[%emt 0:00:04]} Rxf5 {
[%emt 0:00:00]} 19. Nc3 {[%emt 0:00:02]} Nf4 {[%emt 0:00:04]} 20. Bxf4 {
[%emt 0:00:09]} Rxf4 {[%emt 0:00:03]} 21. Nd2 {[%emt 0:00:03]} Qd7 {[%emt 0:00:
05]} 22. Nde4 {[%emt 0:00:02]} Rf8 {[%emt 0:00:14]} 23. h3 {[%emt 0:00:06]} Nf7
{[%emt 0:00:01]} 24. Qg4 {[%emt 0:00:02]} Qd8 {[%emt 0:00:22]} 25. Re3 {
[%emt 0:00:06]} Nh6 {[%emt 0:00:03]} 26. Qe6+ {[%emt 0:00:03]} Kh8 27. Nb5 {
[%emt 0:00:07]} Nf5 {[%emt 0:00:02]} 28. Rf3 {[%emt 0:00:11]} Nd4 {[%emt 0:00:
14]} 29. Nxd4 {[%emt 0:00:08]} cxd4 {[%emt 0:00:07]} 30. Rg3 {[%emt 0:00:21]}
a4 {[%emt 0:00:09]} 31. Qg4 {[%emt 0:00:08]} Rf7 {[%emt 0:00:16]} 32. Qe6 {
[%emt 0:00:16]} Rf4 {[%emt 0:00:06]} 33. Nd2 {[%emt 0:00:04]} Rf6 {[%emt 0:00:
08]} 34. Qg4 {[%emt 0:00:01]} Rg6 {[%emt 0:00:01]} 35. Qe4 {[%emt 0:00:03]}
Rxg3 36. fxg3 {[%emt 0:00:01]} Bg5 {[%emt 0:00:03]} 37. Nf3 {[%emt 0:00:03]}
Be3+ {[%emt 0:00:02]} 38. Kh2 {[%emt 0:00:01]} Rc8 {[%emt 0:00:03]} 39. Qd3 {
[%emt 0:00:01]} Qe8 {[%emt 0:00:04]} 40. Nh4 {[%emt 0:00:05]} e4 {[%emt 0:00:
01]} 41. Qe2 {[%emt 0:00:01]} Bg5 {[%emt 0:00:01]} 42. Re1 {[%emt 0:00:03]}
Bxh4 {[%emt 0:00:03]} 43. gxh4 {[%emt 0:00:01]} Qe5+ {[%emt 0:00:00]} 44. Kh1 {
[%emt 0:00:01]} e3 {[%emt 0:00:02]} 45. Qd3 {[%emt 0:00:02]} Rf8 {[%emt 0:00:
02]} 46. Qe2 {[%emt 0:00:13]} h6 {[%emt 0:00:02]} 47. Qd3 {[%emt 0:00:02]} Rf2
{[%emt 0:00:02]} 48. b3 {[%emt 0:00:03]} axb3 {[%emt 0:00:03]} 49. Qxb3 {
[%emt 0:00:01]} e2 {[%emt 0:00:03]} 50. Qd3 {[%emt 0:00:01]} Qf6 {[%emt 0:00:
08]} 51. Rxe2 {[%emt 0:00:02]} Rf1+ {[%emt 0:00:01]} 52. Kh2 Qf4+ 53. g3 {
[%emt 0:00:01]} Rf2+ {[%emt 0:00:03]} 54. Rxf2 {[%emt 0:00:02]} Qxf2+ 55. Kh1
Qe1+ {[%emt 0:00:02]} 56. Kg2 Qc3 {[%emt 0:00:02]} 57. Qf5 {[%emt 0:00:06]} d3
{[%emt 0:00:02]} 58. Qf8+ {[%emt 0:00:02]} Kh7 59. Qf5+ Kh8 60. Qf8+ Kh7 61.
Qf5+ Kh8 {[%emt 0:00:00]} 1/2-1/2

[Event "FIDE Women World Blitz 2021"]
[Site "Warsaw"]
[Date "2021.12.29"]
[Round "7.17"]
[White "Stefanova, Antoaneta"]
[Black "Semenova, Elena"]
[Result "1-0"]
[ECO "A08"]
[WhiteElo "2475"]
[BlackElo "2233"]
[Annotator "ChessBase"]
[PlyCount "85"]
[EventDate "2021.12.29"]
[EventType "swiss"]
[EventCountry "POL"]
[Tiebreak "Cut1 Buchholz"]
[SourceTitle "playchess.com"]
[Source "ChessBase"]
[SourceQuality "1"]
[TimeControl "180+2"]

1. Nf3 {[%emt 0:00:01]} d5 {[%emt 0:00:00]} 2. g3 {[%emt 0:00:01]} Nf6 {
[%emt 0:00:01]} 3. Bg2 {[%emt 0:00:01]} c5 {[%emt 0:00:00]} 4. O-O {[%emt 0:00:
02]} h6 {[%emt 0:00:01]} 5. b3 {[%emt 0:00:12]} Nc6 {[%emt 0:00:11]} 6. Bb2 {
[%emt 0:00:01]} e6 {[%emt 0:00:02]} 7. e3 {[%emt 0:00:04]} Be7 {[%emt 0:00:01]}
8. d4 {[%emt 0:00:19]} O-O {[%emt 0:00:18]} 9. dxc5 {[%emt 0:00:04]} Bxc5 {
[%emt 0:00:02]} 10. Qe2 {[%emt 0:00:01]} Qe7 {[%emt 0:00:07]} 11. c4 {[%emt 0:
00:07]} dxc4 {[%emt 0:00:05]} 12. Qxc4 {[%emt 0:00:02]} e5 {[%emt 0:00:09]} 13.
Nc3 {[%emt 0:00:13]} Be6 {[%emt 0:00:02]} 14. Qe2 {[%emt 0:00:02]} a6 {[%emt 0:
00:10]} 15. Nd2 {[%emt 0:00:05]} Rac8 {[%emt 0:00:10]} 16. a3 {[%emt 0:00:15]}
Rfd8 {[%emt 0:00:06]} 17. b4 {[%emt 0:00:03]} Ba7 {[%emt 0:00:06]} 18. Nde4 {
[%emt 0:00:32]} Nxe4 {[%emt 0:00:25]} 19. Nxe4 {[%emt 0:00:02]} b5 {[%emt 0:00:
08]} 20. Rfd1 {[%emt 0:00:05]} Bc4 {[%emt 0:00:04]} 21. Qf3 {[%emt 0:00:15]}
Qe6 {[%emt 0:00:16]} 22. g4 {[%emt 0:00:16]} Ne7 {[%emt 0:00:11]} 23. h4 {
[%emt 0:00:11]} Ng6 {[%emt 0:00:08]} 24. Qg3 {[%emt 0:00:02]} Rxd1+ {[%emt 0:
00:18]} 25. Rxd1 {[%emt 0:00:01]} Be2 {[%emt 0:00:01]} 26. Rd6 {[%emt 0:00:28]}
Qxg4 {[%emt 0:00:05]} 27. Qxg4 {[%emt 0:00:02]} Bxg4 {[%emt 0:00:01]} 28. Rxa6
{[%emt 0:00:02]} Rc2 {[%emt 0:00:21]} 29. Bc3 {[%emt 0:00:04]} Nxh4 {[%emt 0:
00:10]} 30. Rxa7 {[%emt 0:00:11]} Nxg2 {[%emt 0:00:05]} 31. Kxg2 {[%emt 0:00:
01]} Bf5 {[%emt 0:00:02]} 32. Nd6 {[%emt 0:00:02]} Be6 {[%emt 0:00:12]} 33.
Bxe5 {[%emt 0:00:02]} Bd5+ {[%emt 0:00:02]} 34. Kg3 {[%emt 0:00:01]} Rc1 {
[%emt 0:00:04]} 35. e4 {[%emt 0:00:02]} Be6 {[%emt 0:00:02]} 36. f4 {[%emt 0:
00:03]} Rg1+ {[%emt 0:00:03]} 37. Kf2 {[%emt 0:00:00]} Rh1 {[%emt 0:00:02]} 38.
f5 {[%emt 0:00:02]} Bb3 {[%emt 0:00:02]} 39. Nxb5 {[%emt 0:00:02]} h5 {[%emt 0:
00:02]} 40. Nd4 {[%emt 0:00:02]} Bc4 {[%emt 0:00:01]} 41. b5 {[%emt 0:00:01]}
h4 {[%emt 0:00:02]} 42. b6 {[%emt 0:00:00]} f6 {[%emt 0:00:01]} 43. b7 {
[%emt 0:00:04]} 1-0

[Event "FIDE Women World Blitz 2021"]
[Site "Warsaw"]
[Date "2021.12.29"]
[Round "7.18"]
[White "Girya, Olga"]
[Black "Dzagnidze, Nana"]
[Result "0-1"]
[ECO "E04"]
[WhiteElo "2402"]
[BlackElo "2524"]
[Annotator "ChessBase"]
[PlyCount "20"]
[EventDate "2021.12.29"]
[EventType "swiss"]
[EventCountry "POL"]
[Tiebreak "Cut1 Buchholz"]
[SourceTitle "playchess.com"]
[Source "ChessBase"]
[SourceQuality "1"]
[TimeControl "180+2"]

1. d4 {[%emt 0:00:00]} Nf6 {[%emt 0:00:02]} 2. c4 {[%emt 0:00:01]} e6 {[%emt 0:
00:00]} 3. Nf3 {[%emt 0:00:01]} d5 {[%emt 0:00:01]} 4. g3 {[%emt 0:00:01]} dxc4
{[%emt 0:00:07]} 5. Bg2 {[%emt 0:00:01]} a6 {[%emt 0:00:02]} 6. O-O {[%emt 0:
00:02]} Nc6 {[%emt 0:00:02]} 7. Qd2 {[%emt 0:00:02]} Rb8 {[%emt 0:00:02]} 8.
Ne5 {[%emt 0:00:02]} Nxe5 {[%emt 0:00:02]} 9. dxe5 {[%emt 0:00:02]} Nd7 {
[%emt 0:00:02]} 10. Qf4 {[%emt 0:00:02]} b5 {[%emt 0:00:02]} 0-1

[Event "FIDE Women World Blitz 2021"]
[Site "Warsaw"]
[Date "2021.12.29"]
[Round "7.19"]
[White "Badelka, Olga"]
[Black "Injac, Teodora"]
[Result "0-1"]
[ECO "E73"]
[WhiteElo "2188"]
[BlackElo "2387"]
[Annotator "NA"]
[PlyCount "72"]
[EventDate "2021.12.29"]
[EventType "swiss"]
[EventCountry "POL"]
[Tiebreak "Cut1 Buchholz"]
[SourceTitle "playchess.com"]
[Source "ChessBase"]
[SourceQuality "1"]
[TimeControl "180+2"]

1. d4 {[%emt 0:00:01]} Nf6 {[%emt 0:00:01]} 2. c4 {[%emt 0:00:01]} g6 {[%emt 0:
00:02]} 3. Nc3 {[%emt 0:00:03]} Bg7 {[%emt 0:00:00]} 4. e4 {[%emt 0:00:01]} d6
{[%emt 0:00:01]} 5. Be2 {[%emt 0:00:01]} O-O {[%emt 0:00:01]} 6. h4 {[%emt 0:
00:02]} c5 {[%emt 0:00:05]} 7. d5 {[%emt 0:00:02]} b5 {[%emt 0:00:03]} 8. cxb5
a6 9. a4 {[%emt 0:00:02]} Nbd7 {[%emt 0:00:19]} 10. Nf3 {[%emt 0:00:14]} Qa5 {
[%emt 0:00:36]} 11. O-O {[%emt 0:00:05]} axb5 {[%emt 0:00:04]} 12. Bxb5 {
[%emt 0:00:02]} Ba6 {[%emt 0:00:01]} 13. Bxa6 {[%emt 0:00:16]} Qxa6 {[%emt 0:
00:04]} 14. Qc2 {[%emt 0:00:09]} Rfb8 {[%emt 0:00:10]} 15. Bg5 {[%emt 0:00:15]}
h6 {[%emt 0:00:04]} 16. Bf4 {[%emt 0:00:07]} Rb4 {[%emt 0:00:13]} 17. Rfe1 {
[%emt 0:00:16]} Rab8 {[%emt 0:00:12]} 18. Nb5 {[%emt 0:00:25]} Nb6 {[%emt 0:00:
20]} 19. b3 {[%emt 0:00:33]} c4 {[%emt 0:00:03]} 20. bxc4 {[%emt 0:00:24]} Rxc4
{[%emt 0:00:04]} 21. Qe2 {[%emt 0:00:07]} Rxe4 {[%emt 0:00:04]} 22. Qc2 {
[%emt 0:00:02]} Rxf4 {[%emt 0:00:05]} 23. Rxe7 {[%emt 0:00:11]} Nbxd5 {[%emt 0:
00:02]} 24. Ree1 {[%emt 0:00:07]} Rc8 {[%emt 0:00:24]} 25. Qd3 {[%emt 0:00:05]}
Rxa4 {[%emt 0:00:05]} 26. Rxa4 {[%emt 0:00:02]} Qxa4 {[%emt 0:00:01]} 27. Nxd6
{[%emt 0:00:02]} Rc3 {[%emt 0:00:07]} 28. Qd2 {[%emt 0:00:09]} Qc2 {[%emt 0:00:
11]} 29. Qd4 {[%emt 0:00:06]} Rc7 {[%emt 0:00:24]} 30. Ne5 {[%emt 0:00:05]} Qc3
{[%emt 0:00:04]} 31. Qd1 {[%emt 0:00:04]} Nf4 {[%emt 0:00:05]} 32. Ndxf7 {
[%emt 0:00:03]} Rxf7 {[%emt 0:00:03]} 33. Nxf7 {[%emt 0:00:02]} Kxf7 {[%emt 0:
00:01]} 34. Qb1 {[%emt 0:00:03]} Kg8 {[%emt 0:00:05]} 35. Qa2+ {[%emt 0:00:00]}
Kh7 {[%emt 0:00:01]} 36. Qa8 {[%emt 0:00:02]} Qxe1+ {[%emt 0:00:01]} 0-1